Cogmind - Beta 16 @@@ ROGUE MODE // 2026.01.12 @ 11:30:13 Player: FR-13D Result: Destroyed by as-88836 with Assembled Maul Performance ------------- Evolutions (1) 500 Regions Visited (4) 800 Robots Destroyed (42) 210 Value Destroyed (674) 674 Prototype IDs (6) 120 Alien Tech Used (0) 0 Bonus (0) 0 TOTAL SCORE: 2304 Bonus ------- None Cogmind --------- Core Integrity 0/400 Matter 300/300 Energy 250/250 System Corruption 2% Temperature Cool (0) Movement Rolling (150) Ox4 Location -9/Mines Parts ------- > --- POWER (1) -------- Ion Engine > --- PROPULSION (2) --- Armored Wheel > --- UTILITY (4) ------ High-capacity Storage Unit > --- WEAPON (2) ------- Advanced Beam Cannon Light Assault Rifle > --- INVENTORY (20) --- Ion Engine Light Ion Engine Light Treads Light Treads Light Treads Wheel Armored Wheel Heat Sink Heat Sink High-capacity Matter Pod (200) Sensor Array Signal Interpreter Improved Terrain Scanner ECM Suite Small Laser Advanced Beam Cannon Advanced Beam Cannon Advanced Beam Cannon Advanced Beam Cannon Mining Laser Peak State ------------ > --- POWER ------------ Ion Engine > --- PROPULSION ------- Wheel Armored Wheel > --- UTILITY ---------- High-capacity Storage Unit ECM Suite Light Armor Plating Hardened Light Armor Plating > --- WEAPON ----------- Advanced Beam Cannon Light Assault Rifle > --- INVENTORY -------- Ion Engine Light Ion Engine Light Treads Light Treads Light Treads Wheel Armored Wheel Heat Sink Heat Sink High-capacity Matter Pod Sensor Array Signal Interpreter Improved Terrain Scanner Seismic Detector Small Laser Advanced Beam Cannon Advanced Beam Cannon Advanced Beam Cannon Advanced Beam Cannon Mining Laser [Rating: 16] Favorites ----------- Power Ion Engine Engine Ion Engine Propulsion Wheel Treads Light Treads Wheel Wheel Utility High-capacity Storage Unit Device Seismic Detector Storage High-capacity Storage Unit Protection Hardened Light Armor Plating Weapon Small Laser Energy Gun Small Laser Energy Cannon Advanced Beam Cannon Ballistic Gun Light Assault Rifle Special Weapon Mining Laser Build | -11 -10 -10 -9 -9 ------- Run | Yrd Mat Min Mat Min Slots Evolved 2 | . . . 2 . Power . | . . . . . Propulsion . | . . . . . Utility 2 | . . . 2 . Weapon . | . . . . . Parts Attached 33 | 9 8 1 15 . Power 3 | 1 1 . 1 . Engine 3 | 1 1 . 1 . Core . | . . . . . Reactor . | . . . . . Propulsion 10 | 3 3 1 3 . Treads 4 | . 2 1 1 . Leg . | . . . . . Wheel 6 | 3 1 . 2 . Hover . | . . . . . Flight . | . . . . . Utility 11 | 2 3 . 6 . Device 5 | 1 1 . 3 . Storage 3 | 1 2 . . . Processor . | . . . . . Hackware . | . . . . . Protection 3 | . . . 3 . Artifact . | . . . . . Weapon 9 | 3 1 . 5 . Energy Gun 3 | 1 . . 2 . Energy Cannon 1 | . . . 1 . Ballistic Gun 4 | 2 . . 2 . Ballistic Cannon . | . . . . . Launcher . | . . . . . Special Weapon 1 | . 1 . . . Impact Weapon . | . . . . . Slashing Weapon . | . . . . . Piercing Weapon . | . . . . . Special Melee Weapon . | . . . . . Unidentified Prototypes 1 | . . . 1 . Parts Lost 6 | . . . 2 4 Power . | . . . . . Propulsion 1 | . . . . 1 Utility 4 | . . . 1 3 Weapon 1 | . . . 1 . Highest Loss Streak 3 | . . . 1 3 To Critical Strikes . | . . . . . Average Backups 12 | 4 9 11 14 20 Power 1 | . 1 1 1 2 Propulsion 3 | 2 3 3 3 5 Utility 5 | . 3 5 6 7 Weapon 2 | 1 1 2 3 6 Tool/Special . | . . . . . Unused Backups 14 | . 1 . . 13 Power 2 | . . . . 2 Propulsion 2 | . . . . 2 Utility 5 | . 1 . . 4 Weapon 5 | . . . . 5 Tool/Special . | . . . . . Average Slot Usage (%) 98 | . 100 100 99 81 Engine 12 | . 14 14 11 11 Treads 4 | . 1 . 7 . Wheel 19 | . 26 27 13 22 Device 18 | . 14 14 22 4 Storage 12 | . 14 14 11 11 Protection 6 | . . . 10 11 Energy Gun 9 | . 13 14 7 . Energy Cannon 1 | . . . 2 11 Ballistic Gun 11 | . 14 14 10 11 Special Weapon 1 | . . . 2 . Peak Build Rating 16 | 8 8 8 16 16 Average Rating 10 | 5 7 8 12 13 On Entrance 7 | . 7 8 8 16 Avg Prop Armor Cover (%) . | . . . . . Naked Turns . | . . . . . Heaviest Build 60 | 14 49 49 60 59 Greatest Support 40 | 26 20 20 40 22 Greatest Overweight (x) 2 | . 2 2 2 2 Average Overweight (x) 1 | . . 2 1 2 Largest Inventory Capacity 20 | 8 20 20 20 20 Average Capacity 17 | 7 12 20 20 20 Most Carried 20 | 8 11 11 20 20 Average Carried 12 | 4 9 11 14 20 Final Capacity 20 | 8 20 20 20 20 Final Carried 20 | 7 11 11 20 20 Class Distribution -------------------- 90% | Mutant 9% | Scavenger-Mutant Dominant Class ---------------- Mutant | -10/Materials Mutant | -10/Mines Mutant | -9/Materials Mutant | -9/Mines Resources | -11 -10 -10 -9 -9 ----------- Run | Yrd Mat Min Mat Min Matter Collected 1198 | 326 151 256 435 30 Remotely . | . . . . . Salvage Created 1174 | 201 151 51 704 67 Parts 88 | 14 10 6 58 . Haulers Intercepted 2 | . 1 . 1 . Recyclers Shooed 2 | 1 1 . . . Parts Field Recycled . | . . . . . Retrieved Matter . | . . . . . Parts Self-Destructed . | . . . . . Prevented . | . . . . . Parts Restored . | . . . . . Kills | -11 -10 -10 -9 -9 ------- Run | Yrd Mat Min Mat Min Combat Hostiles Destroyed 37 | . 6 3 24 4 Guns 33 | . 6 3 24 . Cannons 4 | . . . . 4 Classes Destroyed 8 | 2 2 . 3 1 Tunneler 5 | 5 . . . . Hauler 2 | . 1 . 1 . Recycler 1 | 1 . . . . Watcher 1 | . . . 1 . Swarmer 23 | . 6 3 14 . Grunt 7 | . . . 7 . Sentry 3 | . . . 3 . Assembled 4 | . . . . 4 Best Kill Streak 8 | 3 3 3 8 4 Combat Bots Only 8 | . 3 3 8 4 Max Kills in Single Turn 2 | 1 2 2 1 1 Gunslinging 1 | . 1 1 . . Exploded . | . . . . . Melee . | . . . . . Uniques/NPCs Destroyed . | . . . . . Combat | -11 -10 -10 -9 -9 -------- Run | Yrd Mat Min Mat Min Hostile Shots Fired 190 | . 30 8 126 26 Missed 42 | . 12 1 24 5 Hits 148 | . 18 7 102 21 Melee 6 | . . . . 6 Projectile 142 | . 18 7 102 15 AOE 6 | . . . . 6 Critical Strikes 1 | . . . 1 . Part Disruptions 1 | . . . . 1 Damage Taken 1780 | . 151 56 1011 562 Core 441 | . 35 . 177 229 Absorbed by Shields . | . . . . . Core Remaining (%) 93 | 100 . 86 . . Volleys Fired 132 | 12 17 3 87 13 Largest 2 | 2 2 2 2 2 Hottest 100 | 60 100 60 100 88 Shots Fired 236 | 24 33 6 147 26 Gun 205 | 24 32 6 130 13 Cannon 17 | . . . 4 13 Launcher . | . . . . . Special 14 | . 1 . 13 . Kinetic 104 | 12 16 3 60 13 Thermal 132 | 12 17 3 87 13 Explosive . | . . . . . Electromagnetic . | . . . . . Robot Hit Streak 27 | 3 4 4 27 4 Robot Miss Streak 8 | 2 4 1 3 8 Penetration Max . | . . . . . Secondary Targets 7 | . 3 1 3 . Max Gunslinging Chain 1 | . 1 1 1 . Shots Hit Robots 141 | 13 14 5 101 8 Core Hits 67 | 7 9 3 41 7 Critical Kills . | . . . . . Critical Parts Destroyed . | . . . . . Critical Strikes . | . . . . . Melee Attacks . | . . . . . Impact . | . . . . . Slashing . | . . . . . Piercing . | . . . . . Sneak Attacks . | . . . . . Combat Hostiles . | . . . . . Follow-up Attacks . | . . . . . Damage Inflicted 1661 | 161 174 59 1108 159 Guns 1476 | 161 174 59 1045 37 Cannons 185 | . . . 63 122 Explosions . | . . . . . Melee . | . . . . . Ramming . | . . . . . Kinetic 676 | 120 78 36 405 37 Thermal 985 | 41 96 23 703 122 Explosive . | . . . . . Electromagnetic . | . . . . . Impact . | . . . . . Slashing . | . . . . . Piercing . | . . . . . Highest Corruption . | . . . . . Average Corruption . | . . . . . Corruption Purged . | . . . . . Corruption Blocked . | . . . . . Overload Shots . | . . . . . Overflow Damage . | . . . . . Projectiles . | . . . . . Explosions . | . . . . . Melee . | . . . . . Knockbacks . | . . . . . Impact . | . . . . . Kinetic . | . . . . . Secondary . | . . . . . Self-Inflicted Damage . | . . . . . Shots . | . . . . . Rammed . | . . . . . Targets Rammed . | . . . . . Kicked . | . . . . . Crushed . | . . . . . Highest Temperature 380 | . 20 . 162 380 Average Temperature 67 | . 12 . 45 172 Received Heat Transfer 354 | . . . 285 69 Siege Activations . | . . . . . Martial Activations . | . . . . . Shielding Activations . | . . . . . Robots Disrupted . | . . . . . Combat Hostiles . | . . . . . Robots Corrupted . | . . . . . Combat Hostiles . | . . . . . Parts Fried . | . . . . . Impact Corruptions . | . . . . . Robots Melted . | . . . . . Combat Hostiles . | . . . . . Parts Melted 3 | . 2 . 1 . Heat Transferred 2108 | 100 225 50 1511 222 Parts Sabotaged . | . . . . . Parts Stolen . | . . . . . Parts Stripped . | . . . . . Power Chain Reactions . | . . . . . Alert | -11 -10 -10 -9 -9 ------- Run | Yrd Mat Min Mat Min Maximum Alert Level 1 | . . . 1 . Low Security (%) 99 | 100 100 100 98 100 Level 1 . | . . . 1 . Level 2 . | . . . . . Level 3 . | . . . . . Level 4 . | . . . . . Level 5 . | . . . . . High Security . | . . . . . Max Security . | . . . . . Peak Influence 203 | 10 70 80 203 42 Initial 42 | . . 11 . 42 Average 71 | 1 20 24 115 14 Influence Increases 931 | 30 183 100 618 . Destroy 0b10 Robot/C 660 | . 120 60 480 . Destroy 0b10 Robot/NC 45 | 30 5 . 10 . Destroy Leader 116 | . 22 10 84 . Successful Hack 52 | . 21 . 31 . Disable Machine 15 | . 15 . . . Destroy Structure 13 | . . . 13 . Lose Combat Pursuer 30 | . . 30 . . Influence Decreases 931 | 30 153 130 509 109 Entered New Map 86 | . . 19 . 67 Time Decay 795 | 30 153 111 489 12 Lost Part 50 | . . . 20 30 Squads Dispatched 4 | . 1 . 3 . Investigation 1 | . . . 1 . Extermination . | . . . . . Reinforcement 3 | . 1 . 2 . Assault . | . . . . . Garrison . | . . . . . Intercept . | . . . . . Searches Triggered . | . . . . . Construction Impeded . | . . . . . Haulers Reinforced . | . . . . . Active Scanning Responses . | . . . . . Cargo Convoy Interrupts . | . . . . . Stealth | -11 -10 -10 -9 -9 --------- Run | Yrd Mat Min Mat Min Distress Signals 5 | . . . 5 . Communications Jammed . | . . . . . Distress Signals . | . . . . . Times Spotted 73 | . 10 5 49 9 Peak Tracking Total 6 | . 4 3 6 5 Tactical Retreats 10 | . . 1 9 . ECM-based Alert Blocks 22 | . . . 22 . Traps | -11 -10 -10 -9 -9 ------- Run | Yrd Mat Min Mat Min Traps Triggered . | . . . . . Indirectly . | . . . . . Trap Hack Attempts . | . . . . . Triggered . | . . . . . Disarmed . | . . . . . Reprogrammed . | . . . . . Reused . | . . . . . Traps Extracted . | . . . . . Installed . | . . . . . Triggered . | . . . . . Machines | -11 -10 -10 -9 -9 ---------- Run | Yrd Mat Min Mat Min Machines Disabled 1 | . 1 . . . Max in Single Turn 1 | . 1 . . . Machines Repaired . | . . . . . Machines Dismantled . | . . . . . Machines Sabotaged . | . . . . . Overloaded Fab Kills . | . . . . . Hacking | -11 -10 -10 -9 -9 --------- Run | Yrd Mat Min Mat Min Machines Accessed 9 | . 4 . 5 . Terminals 8 | . 4 . 4 . Fabricators . | . . . . . Repair Stations . | . . . . . Recycling Units . | . . . . . Scanalyzers 1 | . . . 1 . Garrison Access . | . . . . . Total Hacks 25 | . 9 . 16 . Successful 14 | . 5 . 9 . Failed 11 | . 4 . 7 . Catastrophic 1 | . 1 . . . Database Lockouts . | . . . . . Manual 16 | . 8 . 8 . Terminals 22 | . 9 . 13 . Fabricators . | . . . . . Repair Stations . | . . . . . Recycling Units . | . . . . . Scanalyzers 3 | . . . 3 . Garrison Access . | . . . . . Terminal Hacks 6 | . 2 . 4 . Robot Analysis 1 | . 1 . . . Prototype ID Bank 3 | . 1 . 2 . Alert Level 1 | . . . 1 . Patrol Status 1 | . . . 1 . Fabricator Hacks . | . . . . . Repair Station Hacks . | . . . . . Recycling Unit Hacks . | . . . . . Scanalyzer 1 | . . . 1 . Retrieve Study 1 | . . . 1 . Garrison Access Hacks . | . . . . . Unauthorized Hacks 7 | . 3 . 4 . Terminals 7 | . 3 . 4 . Botnet 7 | . 3 . 4 . Fabricators . | . . . . . Repair Stations . | . . . . . Recycling Units . | . . . . . Scanalyzers . | . . . . . Garrison Access . | . . . . . Data Cores Recovered . | . . . . . Used . | . . . . . Hacking Detections 8 | . 4 . 4 . Full Trace Events 1 | . . . 1 . Feedback Events . | . . . . . Feedback Blocked . | . . . . . Robot Schematics Acquired . | . . . . . Robots Built . | . . . . . Authchips . | . . . . . Time . | . . . . . Total Robot Build Rating . | . . . . . Part Schematics Acquired . | . . . . . Parts Built . | . . . . . Authchips . | . . . . . Time . | . . . . . Total Part Build Rating . | . . . . . Part Studies Acquired 1 | . . . 1 . Parts Repaired . | . . . . . Time . | . . . . . Parts Recycled . | . . . . . Recycled Matter . | . . . . . Retrieved Matter . | . . . . . Retrieved Components . | . . . . . Parts Scanalyzed . | . . . . . Part Schematics Acquired . | . . . . . Parts Damaged . | . . . . . Bothacking | -11 -10 -10 -9 -9 ------------ Run | Yrd Mat Min Mat Min Used RIF Installer . | . . . . . Robots Hacked . | . . . . . Non-combat . | . . . . . Combat . | . . . . . Robot Hacks Applied . | . . . . . Relay Couplers Released . | . . . . . Fabnet Peak Effective % . | . . . . . Robots Rewired . | . . . . . Allies Hacked . | . . . . . Hacks Repelled . | . . . . . Allies | -11 -10 -10 -9 -9 -------- Run | Yrd Mat Min Mat Min Total Allies . | . . . . . Largest Group . | . . . . . Highest-Rated Group . | . . . . . Highest-Rated Ally . | . . . . . Total Orders . | . . . . . Ally Attacks . | . . . . . Total Damage . | . . . . . Kills . | . . . . . Allies Corrupted . | . . . . . Allies Melted . | . . . . . Intel | -11 -10 -10 -9 -9 ------- Run | Yrd Mat Min Mat Min Active Infowar (turns) 2293 | 70 530 332 1334 27 Terrain 491 | . . . 491 . Seismic 1732 | 70 530 332 773 27 ECM 1116 | . . . 1116 . Robot Analysis Total 1 | . 1 . . . Derelict Logs Recovered 1 | . . 1 . . Drone Launches . | . . . . . Drone Recoveries . | . . . . . Exploration | -11 -10 -10 -9 -9 ------------- Run | Yrd Mat Min Mat Min Turns Passed 2423 | 140 530 332 1334 87 Spaces Moved 1549 | 95 515 275 621 43 Core 4 | 4 . . . . Treads 112 | . . . 112 . Legs . | . . . . . Wheels 1433 | 91 515 275 509 43 Hover . | . . . . . Flight . | . . . . . Fastest Speed 50 | 50 80 110 110 110 Average Speed 110 | 86 86 110 135 110 Slowest Speed 240 | 90 110 110 240 110 Overloaded Moves . | . . . . . Propulsion Burnouts . | . . . . . Robots Hopped . | . . . . . Potential Cave-ins . | . . . . . Cave-ins Triggered . | . . . . . Exploration Rate (%) 42 | 3 76 69 47 16 Regions Visited 4 Branch Regions 2 Pre-discovered Areas . | . . . . . Known Exits Taken 1 | . . . 1 . Unknown Exits Taken 3 | 1 1 1 . . Scrap Searched 2 | . . 1 . 1 Spaces Dug 13 | . . . 13 . Terrain Destroyed 15 | . . . 13 2 Melee . | . . . . . Projectile 15 | . . . 13 2 AOE . | . . . . . Terrain Rammed . | . . . . . Walls Destroyed . | . . . . . Machines Disabled . | . . . . . Actions | -11 -10 -10 -9 -9 --------- Run | Yrd Mat Min Mat Min Total 1984 | 124 567 296 939 58 Wait 196 | . 8 15 172 1 Move 1545 | 94 514 274 620 43 Hop . | . . . . . Pick Up 31 | 8 8 . 15 . Fast Attach 6 | 6 . . . . Attach 6 | 1 . . 5 . Detach 1 | . . . 1 . Swap 51 | 2 11 4 33 1 Drop 16 | 1 9 . 6 . Fire 132 | 12 17 3 87 13 Melee . | . . . . . Ram . | . . . . . Kick . | . . . . . Crush . | . . . . . Escape Stasis . | . . . . . Rewire . | . . . . . Trap . | . . . . . Miscellaneous . | . . . . . Route ------- -11/Scrapyard -10/Materials (discovered 3 exits: *Mat / [*Min x2]) -10/Mines -9/Materials (discovered 4 exits: *Mat x3 / *Min) -9/Mines History --------- Turn | Location | Event 5 | -11/Scrapyard | Discovered new exit (range 15) 141 | -11/Scrapyard | Entered Materials 210 | -10/Materials | Discovered new exit (range 15) 300 | -10/Materials | Build established: Mutant 442 | -10/Materials | Discovered new exit (range 7) 513 | -10/Materials | Discovered new exit (range 16) 671 | -10/Materials | Entered Mines 686 | -10/Mines | Met a Derelict bent on vengeance 779 | -10/Mines | Learned 8 Materials zone layouts 972 | -10/Mines | Discovered new exit (range 10) 1003 | -10/Mines | Entered Materials 1003 | -9/Materials | Evolved 2 slots: Utility x2 1004 | -9/Materials | Identified exit to Materials 1004 | -9/Materials | Identified exit to Mines 1100 | -9/Materials | Destroyed 8 combat bots 2337 | -9/Materials | Entered Mines 2340 | -9/Mines | Assembled infested the area 2345 | -9/Mines | Assisted by a Guerilla fighting off Assembled 2362 | -9/Mines | Core integrity fell below 50% 2386 | -9/Mines | Core integrity fell below 20% 2406 | -9/Mines | Lost 3 parts (3u) 2424 | -9/Mines | Received a Rocket Launcher from a helpful Derelict 2424 | -9/Mines | Destroyed by as-88836 with Assembled Maul Last Messages --------------- 02404_ as-74227 sneak attacks. 02407_ as-88836 sneak attacks. 02407_ R-06 Scavenger system corrupted by crushing effect. 02418_ A derelict emerges from the shadows. 02419_ 9R-FYT(g): "Some of my friends down here think you need a mining laser when you travel the depths." 02419_ as-74227 sneak attacks. 02420_ 9R-FYT(g): "They are crazy." 02421_ 9R-FYT(g): "Everyone knows a good old rocket launcher goes a long way." 02421_ K-01 Serf collects debris. 02422_ 9R-FYT(g): "Need to get rid of a swarm? Done. Need a big hole in the wall? Done." 02423_ 9R-FYT(g): "Need a small hole in the wall? Leave that to the mining laser wimps, I say!" 02424_ 9R-FYT(g): "Would you like a rocket launcher? I know I would if I were you, so I'm going to lend you mine." 02424_ 9R-FYT(g) slips back into the shadows. 02424_ Wheel+ destroyed. 02424_ System corrupted by crushing effect (+2). Map ----- +----------------------------------------------------+ | ?????????????????????? ?????????????????????? | | ?????????????????????? ????????????????????? | | ??????????????????????? #????????????????????? | | ??????????????????????? #????????????????????? | | ???????????????????????? #????????????????????? | | ????????????????????????# #???#####????????????? | | ????????????????????????# #??## ##???????????? | | ????????????????????????# #??# #???????????? | | ????????????????????????# #??# #??????####?? | | ????????????????????????# ####==!$ #?????## ##? | | ?????????????????????????# %[[######## #? | | ????????????????????????## %%=%# # # #? | | ???????????????????????## ##### # #? | | ???????????????????????# ##???# ##? | | ??????????????????????## #???## ##* # ##?? | | ?????????????????????## ##???##|%%%! = ##?? | | ?????????????????????# ##?????# ## # #?? | | ?????????????????????# ##??????# # # # ##?? | | ?????????????????????# ##???????# # ### | | ????????????????????## ##????????# # % # | | ????????????????????# ##????????? ### # # | | ???????????????????## #?????????? ??# # % | | ???????????????????# ##????????? ??## # # # | | ????????????????#### ##???????? ???## # ##?# | | ????????????????# u a##??????? #????###?###??? | | ????????????????# ### @#???????#??????????????? | | ??????????????? ???## #??????????????????????? | | ??????????????##?????## ??????????????????????? | | ??????????????????????## ?????????????????????? | | ???????????????????????# ????????????????????? | | ???????????????????????#] #???????????????????? | | ??????????????????????? ##???????????????????? | | ??????????????????????? k #????????????????????? | | ??????????????????????? ##????????????????????? | | ?????????????????????? ##?????????????????????? | | ?????????????????????? ####??????????????????????? | | ??????????????????????#??????????????????????????? | | ?????????????????????????????????????????????????? | | ?????????????????????????????????????????????????? | | ?????????????????????????????????????????????????? | | ?????????????????????????????????????????????????? | | ?????????????????????????????????????????????????? | | ?????????????????????????????????????????????????? | | ?????????????????????????????????????????????????? | | ?????????????????????????????????????????????????? | | ?????????????????????????????????????????????????? | | ?????????????????????????????????????????????????? | | ?????????????????????????????????????????????????? | | ?????????????????????????????????????????????????? | | ?????????????????????????????????????????????????? | +----------------------------------------------------+ Best States ------------- Heat Dissipation 38 Energy Generation 10 Energy Capacity 250 Matter Stores 300 Matter Capacity 300 Sight Range 16 Terrain Scan Range 16 Terrain Scan Density 10 ECM Strength 1 Armor Coverage 300 Evasion (%) 44 Recoil Reduction 2 Item Schematics ----------------- None Robot Schematics ------------------ None Fabricated ------------ Nothing Repaired ---------- Nothing Studied --------- Wheel | -9/Materials | Hacked Alien Tech Used ----------------- None Achievements -------------- None Challenges ------------ None Game ------ Seed GravjetShockboltBattery Manual? 0 Play Time 00:21:16 Cumulative 114.7 hours Start 2026.01.12 @ 11:10:28 End 2026.01.12 @ 11:30:13 Sessions 1 Manual Loads 0 Difficulty Rogue Special Mode None Game No. 121 Rogue 121 Adventurer 0 Explorer 0 Win Type - Total 0 Types 0/0/0/0/0/0/0/0/0/0 Lore% 63 Gallery% 48 Achievement% 40 Wizard Run 0 Options --------- Layout 0 ASCII 0 Keyboard 1 Movement Vi Keybinds 0 Fullscreen 2 Font 18/SmallcapsGlow Map View 76x50 Zoom Use 0% Tactical HUD 1 Map Filters NONE Filters NONE Steam 1 RUN: fb6a27bb-f227-460a-a046-4bb6b0089932